Cogmind - Beta 10.2 @@@ ROGUE MODE // 2021.01.04 @ 12:35:21 Player: Plexion Result: Destroyed by G-73 Enforcer with Phase Gun Performance ------------- Evolutions (6) 3000 Regions Visited (22) 4400 Robots Destroyed (214) 1070 Value Destroyed (11035) 11035 Prototype IDs (243) 4860 Alien Tech Used (0) 0 Bonus (10236) 10236 TOTAL SCORE: 34601 Bonus ------- Triggered High Security 500 High Alert Combat Kills 3645 Follower Combat Kills 1718 Entered Garrisons 400 Used RIF Installer 1000 Network Hubs Disabled 200 Aligned with FarCom 300 Met Data Miner 300 Used Data Conduit 3000 Met R17 at Cetus 500 Friendly Fire -1327 Cogmind --------- Core Integrity 0/1150 Matter 300/300 Energy 17/100 System Corruption 9% Temperature Cool (9) Movement Core (550) Ox10 Location -4/Factory Parts ------- > --- POWER (3) -------- (None) > --- PROPULSION (4) --- (None) > --- UTILITY (10) ----- High-capacity Storage Unit Advanced Hacking Suite Relay Coupler [Grunt] (29) > --- WEAPON (2) ------- (None) > --- INVENTORY (12) --- Advanced Heat Sink Energy Well (500) Experimental Sensor Array Relay Coupler [NC] (28) Relay Coupler [NC] (24) System Backup Module EMDS Neutron Cannon Improved KE Penetrator Improved Remote Datajack Peak State ------------ > --- POWER ------------ Light Antimatter Reactor Quantum Reactor Quantum Reactor > --- PROPULSION ------- Heavy Treads Centrium Heavy Treads > --- UTILITY ---------- Advanced Heat Sink High-capacity Storage Unit High-capacity Storage Unit High-capacity Storage Unit High-capacity Storage Unit High-capacity Storage Unit Experimental Phase Shifter Centrium Medium Armor Plating Centrium Medium Armor Plating Advanced Hacking Suite > --- WEAPON ----------- EMDS > --- INVENTORY -------- Quantum Reactor Heavy Siege Treads Advanced Heavy Siege Treads Advanced Heavy Siege Treads Energy Well YI-UF0's Bottomless Matter Pit Experimental Sensor Array Hardened Heavy Armor Plating Improved Medium Armor Plating Improved Medium Armor Plating Improved Medium Armor Plating Damper Plating Damper Plating Improved Powered Armor EM Dispersion Field Relay Coupler [NC] Relay Coupler [NC] Relay Coupler [Grunt] System Backup Module EMDS Neutron Cannon Autogun KE Penetrator KE Penetrator KE Penetrator Improved KE Penetrator Improved KE Penetrator Improved KE Penetrator Mini Grenade Launcher YI-UF0's Doublenader Improved Remote Datajack Plasma Cutter Phasing Sabre [Rating: 143] Favorites ----------- Power Quantum Reactor Engine Improved Deuterium Engine Power Core Micro Fission Core Reactor Quantum Reactor Propulsion Light Treads Treads Light Treads Leg Myomer Leg Utility High-capacity Storage Unit Device Coolant Injector Storage High-capacity Storage Unit Processor Armor Integrity Analyzer Hackware Advanced Hacking Suite Protection Improved Medium Armor Plating Weapon Heavy Assault Rifle Energy Gun Improved EM Shotgun Energy Cannon Light EM Pulse Cannon Ballistic Gun Heavy Assault Rifle Ballistic Cannon Bore Cannon Launcher Mini Grenade Launcher Special Weapon Plasma Cutter Slashing Weapon Phasing Sabre Special Melee Weapon Improved Datajack Build | -11 -10 -10 -10 -9 -8 -8 -8 -8 -7 -7 -7 -7 -7 -6 -6 -6 -6 -6 -6 -5 -5 -4 ------- Run | Scr Mat Min Exi Min Mat Gar Mat Sto Fac Was Fac Low Dat Pro Fac Ext Cet Arc Hub Fac Gar Fac Slots Evolved 12 | . . . . . 4 . . . 2 . . . . . 2 . . . . 2 . 2 Power 2 | . . . . . . . . . . . . . . . 1 . . . . . . 1 Propulsion 2 | . . . . . 1 . . . 1 . . . . . . . . . . . . . Utility 8 | . . . . . 3 . . . 1 . . . . . 1 . . . . 2 . 1 Weapon . | . . . . . . . . . . . . . . . . . . . . . . . Parts Attached 226 | 6 8 . . 5 19 6 2 25 7 8 2 . 5 10 2 11 20 2 5 16 13 54 Power 18 | 1 . . . 1 1 . . 2 1 . . . . 1 1 . 3 1 1 . . 5 Engine 9 | 1 . . . 1 1 . . 2 1 . . . . . 1 . 1 . . . . 1 Core 1 | . . . . . . . . . . . . . . . . . . 1 . . . . Reactor 8 | . . . . . . . . . . . . . . 1 . . 2 . 1 . . 4 Propulsion 32 | 2 . . . . 4 1 . 6 1 2 . . . . . 3 5 . 1 1 . 6 Treads 30 | 2 . . . . 4 1 . 6 1 2 . . . . . 3 5 . 1 1 . 4 Leg 2 | . . . . . . . . . . . . . . . . . . . . . . 2 Wheel . | . . . . . . . . . . . . . . . . . . . . . . . Hover . | . . . . . . . . . . . . . . . . . . . . . . . Flight . | . . . . . . . . . . . . . . . . . . . . . . . Utility 66 | 1 4 . . . 8 . . 1 3 4 2 . 1 1 1 3 4 1 1 4 8 19 Device 7 | . . . . . . . . . . . . . . . . . 1 . . . 1 5 Storage 11 | 1 4 . . . 3 . . . . 1 1 . . . . . . . . 1 . . Processor 1 | . . . . . . . . . . 1 . . . . . . . . . . . . Hackware 4 | . . . . . . . . . . . . . . . . . . . . . 2 2 Protection 43 | . . . . . 5 . . 1 3 2 1 . 1 1 1 3 3 1 1 3 5 12 Artifact . | . . . . . . . . . . . . . . . . . . . . . . . Weapon 110 | 2 4 . . 4 6 5 2 16 2 2 . . 4 8 . 5 8 . 2 11 5 24 Energy Gun 2 | . . . . . . . . 2 . . . . . . . . . . . . . . Energy Cannon 15 | . . . . . 1 2 . 3 . . . . 1 1 . . 1 . . 2 . 4 Ballistic Gun 60 | 2 3 . . 2 4 1 2 8 1 1 . . 2 4 . 2 5 . 2 6 2 13 Ballistic Cannon 2 | . . . . . . . . . . . . . . . . 2 . . . . . . Launcher 20 | . 1 . . . 1 2 . 3 . . . . 1 3 . 1 2 . . 1 2 3 Special Weapon 6 | . . . . 2 . . . . . 1 . . . . . . . . . . 1 2 Impact Weapon . | . . . . . . . . . . . . . . . . . . . . . . . Slashing Weapon 4 | . . . . . . . . . . . . . . . . . . . . 2 . 2 Piercing Weapon . | . . . . . . . . . . . . . . . . . . . . . . . Special Melee Weapon 1 | . . . . . . . . . 1 . . . . . . . . . . . . . Unidentified Prototypes 6 | . . . . . 3 . . 2 . . . . . . . . . . . 1 . . Parts Lost 82 | . . . . . 2 1 . 7 . 1 . . 2 2 . 4 15 1 1 . 4 42 Power 13 | . . . . . . . . 2 . . . . . 1 . . 4 . . . . 6 Propulsion 20 | . . . . . 2 1 . 2 . . . . . . . 2 5 . 1 . . 7 Utility 29 | . . . . . . . . 1 . 1 . . 1 1 . 2 3 1 . . 3 16 Weapon 20 | . . . . . . . . 2 . . . . 1 . . . 3 . . . 1 13 Highest Loss Streak 23 | . . . . . 1 1 . 3 . 1 . . 2 2 . 3 6 1 1 . 3 23 Average Slot Usage (%) 90 | . 99 100 100 100 97 99 100 97 100 85 84 84 81 83 85 92 88 88 89 82 85 74 Engine 6 | . 14 14 14 14 9 9 9 7 7 7 7 7 7 5 5 6 7 . . . . . Reactor 2 | . . . . . . . . . . . . . . 1 6 6 2 6 6 11 11 8 Treads 20 | . 28 28 28 28 26 26 27 26 30 16 15 15 15 15 13 19 20 20 19 11 11 9 Storage 29 | . 27 28 28 28 31 36 36 36 30 30 30 30 30 30 26 26 26 26 26 29 29 25 Protection 10 | . . . . . 10 9 9 8 15 9 15 15 15 14 20 20 13 12 11 17 16 11 Ballistic Gun 12 | . 26 14 14 5 18 7 7 17 14 7 15 15 10 8 13 12 9 13 13 10 9 7 Launcher 2 | . 1 14 14 14 . 7 6 . . . . . 2 5 . . 1 . . . . . Naked Turns . | . . . . . . . . . . . . . . . . . . . . . . . Heaviest Build 276 | 9 71 71 71 71 149 151 149 159 158 159 159 156 163 163 181 184 185 180 225 232 233 276 Greatest Support 160 | 40 40 40 40 40 60 60 60 60 80 140 140 140 140 140 140 140 130 130 138 150 150 160 Greatest Overweight (x) 4 | . 1 1 1 1 3 3 2 2 1 1 1 1 1 1 1 2 4 1 1 2 1 3 Average Overweight (x) 1 | . . 1 1 1 1 2 2 2 1 1 1 1 1 . 1 1 1 1 1 1 1 1 Largest Inventory Capacity 44 | 6 20 20 20 20 36 36 36 36 36 36 36 36 36 36 36 36 36 36 36 44 44 44 Average Capacity 34 | 5 18 20 20 20 32 36 36 36 36 35 36 36 36 36 36 36 36 36 36 44 44 42 Most Carried 44 | 4 20 20 20 20 33 35 35 36 36 36 36 36 36 35 30 36 36 31 36 39 44 44 Average Carried 31 | 2 15 19 19 19 27 31 34 34 33 35 36 36 35 33 29 32 34 30 33 37 40 38 Final Capacity 44 | 6 20 20 20 20 36 36 36 36 36 36 36 36 36 36 36 36 36 36 36 44 44 12 Final Carried 44 | 4 20 20 20 20 31 34 35 33 36 36 36 36 34 31 30 35 29 31 36 39 44 11 Class Distribution -------------------- 90% | Hauler-Mutant 7% | Scavenger-Mutant Dominant Class ---------------- Hauler-Mutant | -10/Materials Hauler-Mutant | -10/Mines Hauler-Mutant | -10/Exiles Hauler-Mutant | -9/Mines Hauler-Mutant | -8/Materials Hauler-Mutant | -8/Garrison Hauler-Mutant | -8/Materials Hauler-Mutant | -8/Storage Hauler-Mutant | -7/Factory Hauler-Mutant | -7/Waste Hauler-Mutant | -7/Factory Hauler-Mutant | -7/Lower Caves Hauler-Mutant | -7/Data Miner Hauler-Mutant | -6/Proximity Caves Hauler-Mutant | -6/Factory Hauler-Mutant | -6/Extension Hauler-Mutant | -6/Cetus Scavenger-Mutant | -6/Archives Scavenger-Mutant | -6/Hub_04(d) Hauler-Mutant | -5/Factory Hauler-Mutant | -5/Garrison Hauler-Mutant | -4/Factory Resources | -11 -10 -10 -10 -9 -8 -8 -8 -8 -7 -7 -7 -7 -7 -6 -6 -6 -6 -6 -6 -5 -5 -4 ----------- Run | Scr Mat Min Exi Min Mat Gar Mat Sto Fac Was Fac Low Dat Pro Fac Ext Cet Arc Hub Fac Gar Fac Matter Collected 9570 | 189 269 59 151 38 621 108 . 733 115 1705 30 22 405 242 228 733 512 211 237 . 953 2009 Remotely . | . . . . . . . . . . . . . . . . . . . . . . . Salvage Created 8892 | . 188 70 . 120 590 353 . 769 . . 71 . 115 212 . 256 587 353 455 52 753 3948 Parts 423 | . 14 10 . 8 32 26 . 53 . . 3 . 1 16 . 12 21 20 22 6 29 150 Haulers Intercepted 3 | . 1 . . . 1 . . 1 . . . . . . . . . . . . . . Recyclers Shooed 2 | . . . . . 1 . . . . . . . . . . 1 . . . . . . Parts Field Recycled . | . . . . . . . . . . . . . . . . . . . . . . . Retrieved Matter . | . . . . . . . . . . . . . . . . . . . . . . . Parts Self-Destructed 9 | . . . . . . . . . . . . . . 9 . . . . . . . . Prevented . | . . . . . . . . . . . . . . . . . . . . . . . Kills | -11 -10 -10 -10 -9 -8 -8 -8 -8 -7 -7 -7 -7 -7 -6 -6 -6 -6 -6 -6 -5 -5 -4 ------- Run | Scr Mat Min Exi Min Mat Gar Mat Sto Fac Was Fac Low Dat Pro Fac Ext Cet Arc Hub Fac Gar Fac Combat Hostiles Destroyed 180 | . 5 8 . . 8 16 . 16 . . 1 . 4 12 . 5 15 4 5 4 18 59 Melee 1 | . . . . . . . . . . . . . . . . . . . . . . 1 Guns 83 | . 5 . . . 8 . . 12 . . 1 . . 1 . 3 6 4 4 . 8 31 Cannons 12 | . . . . . . 2 . . . . . . . . . . 1 . . . . 9 AOE 73 | . . 8 . . . 14 . 4 . . . . 4 11 . 2 8 . . 4 10 8 Classes Destroyed 18 | . 4 . . . 2 3 . 2 . . . . 1 1 . 1 1 . . . . 3 Worker 9 | . . . . . . . . 1 . . . . . . . . . . 2 . . 6 Builder 7 | . . . . . . . . . . . . . . . . 2 . . . . . 5 Hauler 3 | . 1 . . . 1 . . 1 . . . . . . . . . . . . . . Recycler 2 | . . . . . 1 . . . . . . . . . . . . . . . . 1 Mechanic 3 | . . . . . . . . . . . . . . . . . . . . . . 3 Operator 3 | . 1 . . . 1 . . . . . . . . . . . . 1 . . . . Watcher 4 | . . . . . . . . . . . . . . . . . 1 . 1 . . 2 Swarmer 41 | . 3 6 . . . 4 . . . . . . . 9 . . 6 . . 4 5 4 Saboteur 1 | . . . . . . . . . . . . . . . . . . . . . . 1 Grunt 63 | . 2 2 . . 5 7 . 7 . . . . . . . 2 2 . . . 8 28 Brawler 8 | . . . . . . 2 . . . . . . . . . . 1 . . . . 5 Duelist 5 | . . . . . . 1 . . . . . . . . . . . . . . . 4 Protector 2 | . . . . . . . . . . . . . . . . . . . . . . 2 Sentry 27 | . . . . . 3 1 . 7 . . 1 . . 1 . 3 . 4 2 . 5 . Demolisher 2 | . . . . . . . . 1 . . . . . . . . . . . . . 1 Hunter 11 | . . . . . . 1 . 1 . . . . . 1 . . 2 . . . . 6 Programmer 8 | . . . . . . . . . . . . . . . . . . . . . . 8 Behemoth 1 | . . . . . . . . . . . . . . 1 . . . . . . . . Cetus Guard 4 | . . . . . . . . . . . . . . . . . 4 . . . . . Enhanced Grunt 4 | . . . . . . . . . . . . . 4 . . . . . . . . . Lightning 3 | . . . . . . . . . . . . . . . . . . . 3 . . . Surgeon 2 | . . . . . . . . . . . . . 2 . . . . . . . . . Best Kill Streak 14 | . 2 3 . . 2 13 . 5 . . 1 . 4 3 . 4 4 4 4 4 6 14 Combat Bots Only 14 | . 2 3 . . 2 13 . 5 . . 1 . 4 3 . 2 4 4 3 4 6 14 Max Kills in Single Turn 3 | . 1 3 . 1 1 3 . 2 . . 1 . 2 2 . 2 3 1 2 2 2 2 Gunslinging 1 | . . . . . . . . . . . . . . . . . . . . . . 1 Exploded 3 | . . 3 . . . 3 . 2 . . . . 1 2 . 2 3 . . 2 2 1 Melee 1 | . . . . . . . . . . . . . . . . . . . . . . 1 Uniques/NPCs Destroyed 1 | . . . . 1 . . . . . . . . . . . . . . . . . . YI-UF0 (-9/Mines) Combat | -11 -10 -10 -10 -9 -8 -8 -8 -8 -7 -7 -7 -7 -7 -6 -6 -6 -6 -6 -6 -5 -5 -4 -------- Run | Scr Mat Min Exi Min Mat Gar Mat Sto Fac Was Fac Low Dat Pro Fac Ext Cet Arc Hub Fac Gar Fac Damage Taken 23031 | . 227 64 . . 771 294 . 1645 . 60 389 . 659 788 . 1430 3161 340 245 68 1779 11111 Core 2029 | . 94 . . . 44 . . 207 . . . . 2 69 . 101 196 22 9 . 121 1164 Absorbed by Shields 235 | . . . . . . . . . . . . . . . . 18 . . . . 57 160 Reduced by Siege Mode 802 | . . . . . . . . . . . . . . . . . . . . . . 802 Core Remaining (%) 75 | 100 . . . 62 . . . 54 . . . . . 89 . . . . 61 . 87 . Volleys Fired 634 | . 34 6 . 14 36 26 . 68 . 14 2 . 14 40 4 23 57 17 22 4 58 195 Largest 2 | . 2 1 . 1 2 2 . 2 . 1 2 . 1 2 2 2 2 2 2 1 2 2 Hottest 120 | . 40 30 . 20 46 112 . 120 . 23 46 . 120 120 46 57 79 70 70 90 70 90 Shots Fired 1006 | . 68 6 . 14 72 28 . 119 . 14 4 . 14 46 8 34 97 34 43 4 91 310 Gun 771 | . 68 . . . 72 3 . 104 . 9 4 . . 12 8 22 78 34 43 . 74 240 Cannon 76 | . . . . . . 5 . 10 . . . . 1 5 . 6 7 . . 1 . 41 Launcher 133 | . . 6 . . . 20 . 5 . . . . 13 29 . 6 12 . . 3 14 25 Special 26 | . . . . 14 . . . . . 5 . . . . . . . . . . 3 4 Kinetic 777 | . 68 . . . 72 3 . 104 . 9 4 . . 12 8 28 78 34 43 . 74 240 Thermal 47 | . . . . 14 . . . 10 . 5 . . 1 5 . . . . . 1 . 11 Explosive 133 | . . 6 . . . 20 . 5 . . . . 13 29 . 6 12 . . 3 14 25 Electromagnetic 43 | . . . . . . 5 . . . . . . . . . . 7 . . . . 31 Robot Hit Streak 46 | . 7 . . 5 21 9 . 14 . 13 16 . 21 6 7 17 27 20 8 . 23 46 Robot Miss Streak 5 | . 5 1 . 2 3 . . 3 . 1 . . 1 2 2 1 3 1 3 . 1 4 Penetration Max 2 | . . . . . . . . . . . . . . . . 1 1 1 1 . 1 2 Secondary Targets 9 | . . . . . 1 . . . . . . . . . . . 1 . . . 1 6 Max Gunslinging Chain 1 | . . . . . 1 . . . . . . . . . . . 1 . . . 1 1 Shots Hit Robots 676 | . 39 . . 10 53 3 . 75 1 13 3 . 13 18 6 21 64 28 22 . 64 243 Core Hits 523 | . 15 11 . 7 23 34 . 43 . 2 1 . 44 23 1 21 47 11 15 6 52 167 Critical Hits 86 | . . . . 1 1 . . 1 . 1 . . . . . 3 4 4 10 . 9 52 Critical Kills 29 | . . . . . 1 . . 1 . . . . . . . 1 1 3 5 . 1 16 Critical Parts Destroyed 49 | . . . . . . . . . . . . . . . . 1 3 . 5 . 5 35 Melee Attacks 5 | . . . . . . . . . 1 . . . . . . . . . . 2 . 2 Impact . | . . . . . . . . . . . . . . . . . . . . . . . Slashing 4 | . . . . . . . . . . . . . . . . . . . . 2 . 2 Piercing . | . . . . . . . . . . . . . . . . . . . . . . . Sneak Attacks 1 | . . . . . . . . . 1 . . . . . . . . . . . . . Combat Hostiles . | . . . . . . . . . . . . . . . . . . . . . . . Follow-up Attacks . | . . . . . . . . . . . . . . . . . . . . . . . Damage Inflicted 27557 | . 345 417 . 135 835 1254 . 1916 . 184 42 . 1361 1263 70 958 2551 779 935 318 2751 11443 Guns 13598 | . 345 . . . 835 . . 1087 . 128 42 . . 118 70 313 1546 779 635 . 1593 6107 Cannons 2960 | . . . . . . 62 . 73 . . . . 38 85 . 161 137 . . . . 2404 Explosions 10745 | . . 417 . . . 1192 . 756 . . . . 1323 1060 . 484 868 . 287 318 1158 2882 Melee 33 | . . . . . . . . . . . . . . . . . . . . . . 33 Ramming 57 | . . . . 27 . . . . . . . . . . . . . . 13 . . 17 Kinetic 13759 | . 345 . . . 835 . . 1087 . 128 42 . . 118 70 474 1546 779 635 . 1593 6107 Thermal 844 | . . . . 108 . . . 73 . 56 . . 38 85 . . 62 . . . . 422 Explosive 10275 | . . 417 . . . 1192 . 756 . . . . 1323 1060 . 484 806 . . 318 1158 2761 Electromagnetic 2589 | . . . . . . 62 . . . . . . . . . . 137 . 287 . . 2103 Impact . | . . . . . . . . . . . . . . . . . . . . . . . Slashing 33 | . . . . . . . . . . . . . . . . . . . . . . 33 Piercing . | . . . . . . . . . . . . . . . . . . . . . . . Highest Corruption 9 | . 1 1 1 1 . . . 2 . . 2 2 2 2 . 3 3 3 3 . . 9 Average Corruption 2 | . 1 1 1 1 . . . 2 . . 1 2 2 2 . 2 3 3 3 . . 3 Corruption Purged . | . . . . . . . . . . . . . . . . . . . . . . . Effects 84 | . 1 . 4 1 . . . 1 . . 4 2 1 13 . 3 14 4 10 . . 26 Message Errors 21 | . 1 . 2 1 . . . 1 . . 2 . . 3 . 2 4 . 3 . . 2 Matter Fused 11 | . . . . . . . . . . . . . . . . . 3 2 2 . . 4 Heat Flow Errors 8 | . . . . . . . . . . . . . 1 2 . 1 2 . 1 . . 1 Energy Discharges 13 | . . . 1 . . . . . . . 1 . . 5 . . 2 . 2 . . 2 Data Loss (minor) 11 | . . . 1 . . . . . . . 1 2 . 3 . . 1 . 1 . . 2 Data Loss (major) 1 | . . . . . . . . . . . . . . . . . . . . . . 1 Targeting Errors 16 | . . . . . . . . . . . . . . . . . 1 2 . . . 13 Weapon Failures 3 | . . . . . . . . . . . . . . . . . 1 . 1 . . 1 Overload Shots . | . . . . . . . . . . . . . . . . . . . . . . . Overflow Damage 239 | . . . . . . 8 . 14 . . . . 10 . . . 66 . 16 26 . 99 Projectiles 20 | . . . . . . . . . . . . . . . . . . . . . . 20 Explosions 219 | . . . . . . 8 . 14 . . . . 10 . . . 66 . 16 26 . 79 Melee . | . . . . . . . . . . . . . . . . . . . . . . . Knockbacks 2 | . . . . . . . . . . . . . . . . 1 . . 1 . . . Impact 1 | . . . . . . . . . . . . . . . . . . . 1 . . . Kinetic 1 | . . . . . . . . . . . . . . . . 1 . . . . . . Secondary . | . . . . . . . . . . . . . . . . . . . . . . . Self-Inflicted Damage 713 | . . . . . . . . . . . . . 5 126 . . 196 . 87 . 31 268 Shots 19 | . . . . . . . . . . . . . 1 3 . . 5 . 1 . 1 8 Rammed 2 | . . . . 1 . . . . . . . . . . . . . . 1 . . . Targets Rammed 3 | . . . . 1 . . . . . . . . . . . . . . 1 . . 1 Kicked . | . . . . . . . . . . . . . . . . . . . . . . . Crushed 1 | . . . . . . . . . . . . . . . . . . . . . . 1 Highest Temperature 543 | . 12 4 . . 18 51 . 352 . . 22 . 347 352 122 329 245 72 344 62 333 543 Average Temperature 104 | . 6 4 . . 6 20 . 135 . . 12 . 172 105 41 110 92 20 116 21 108 145 Received Heat Transfer 4492 | . 60 18 . . 360 117 . 441 . . . . 84 60 . 366 450 54 18 . 480 1984 Effects 29 | . . . . . . . . 3 . . . . 2 1 . 3 1 . 5 . 2 12 Shutdowns 8 | . . . . . . . . . . . . . 1 . . . . . 2 . . 5 Energy Bleed 8 | . . . . . . . . 1 . . . . . . . 3 1 . 1 . 1 1 Interference 7 | . . . . . . . . 2 . . . . . . . . . . 2 . 1 2 Matter Decay 1 | . . . . . . . . . . . . . 1 . . . . . . . . . Short Circuit 4 | . . . . . . . . . . . . . . 1 . . . . . . . 3 Damage (minor) 1 | . . . . . . . . . . . . . . . . . . . . . . 1 Siege Activations 5 | . . . . . . . . . . . . . . . . . . . . . . 5 Total Turns 190 | . . . . . . . . . . . . . . . . . . . . . . 190 Longest Duration 96 | . . . . . . . . . . . . . . . . . . . . . . 96 Robots Corrupted 11 | . . . . . . . . . . . . . . . . . . . 1 . . 10 Combat Hostiles 11 | . . . . . . . . . . . . . . . . . . . 1 . . 10 Parts Fried 24 | . . . . . . . . . . . . . . . . . 1 . 3 . . 20 Impact Corruptions . | . . . . . . . . . . . . . . . . . . . . . . . Robots Melted . | . . . . . . . . . . . . . . . . . . . . . . . Combat Hostiles . | . . . . . . . . . . . . . . . . . . . . . . . Parts Melted 1 | . . . . . . . . . . . 1 . . . . . . . . . . . Heat Transferred 1205 | . . . . 370 . . . 160 . 185 . . 80 160 . . . . . . . 250 Parts Sabotaged 1 | . . . . . . . . . . . . . . . . . . . . . . 1 Parts Stolen . | . . . . . . . . . . . . . . . . . . . . . . . Parts Stripped . | . . . . . . . . . . . . . . . . . . . . . . . Power Chain Reactions 2 | . . . . . . . . . . . . . . . . . 1 . . . . 1 Missiles Intercepted . | . . . . . . . . . . . . . . . . . . . . . . . Alert | -11 -10 -10 -10 -9 -8 -8 -8 -8 -7 -7 -7 -7 -7 -6 -6 -6 -6 -6 -6 -5 -5 -4 ------- Run | Scr Mat Min Exi Min Mat Gar Mat Sto Fac Was Fac Low Dat Pro Fac Ext Cet Arc Hub Fac Gar Fac Peak Influence 2885 | . 140 379 . 15 212 715 348 320 63 22 245 . . . 94 319 205 200 418 272 902 2885 Initial 473 | . . 54 . . 5 140 348 146 63 22 . . . . 75 45 115 70 70 146 190 473 Average 322 | . 51 340 . 2 73 519 348 196 63 6 100 . . . 83 181 128 176 142 172 532 1509 Maximum Alert Level 5 | . . 1 . . 1 3 1 1 . . 1 . . . . 1 1 1 2 1 3 5 Low Security (%) 59 | 100 100 7 . 100 99 11 . 47 100 100 87 . . . 100 51 90 65 73 78 17 . Level 1 19 | . . 92 . . . 3 100 52 . . 12 . . . . 48 9 34 22 21 26 . Level 2 9 | . . . . . . 74 . . . . . . . . . . . . 3 . 22 21 Level 3 3 | . . . . . . 10 . . . . . . . . . . . . . . 33 10 Level 4 2 | . . . . . . . . . . . . . . . . . . . . . . 26 Level 5 . | . . . . . . . . . . . . . . . . . . . . . . 2 High Security 4 | . . . . . . . . . . . . . . . . . . . . . . 39 Max Security . | . . . . . . . . . . . . . . . . . . . . . . . Squads Dispatched 43 | . 2 . . . 3 . . 2 . . 4 . . . 1 1 . . 1 1 . 28 Investigation 1 | . . . . . . . . . . . 1 . . . . . . . . . . . Extermination 3 | . . . . . . . . . . . . . . . . . . . . 1 . 2 Reinforcement 14 | . 2 . . . 2 . . . . . 1 . . . 1 1 . . 1 . . 6 Assault 20 | . . . . . . . . 2 . . . . . . . . . . . . . 18 Garrison 5 | . . . . . 1 . . . . . 2 . . . . . . . . . . 2 Intercept . | . . . . . . . . . . . . . . . . . . . . . . . Construction Impeded 6 | . . . . . . . . . . . . . . . . 1 . . 1 . . 4 Haulers Reinforced 2 | . . . . . . . . . . . . . . . . . . . . . . 2 Stealth | -11 -10 -10 -10 -9 -8 -8 -8 -8 -7 -7 -7 -7 -7 -6 -6 -6 -6 -6 -6 -5 -5 -4 --------- Run | Scr Mat Min Exi Min Mat Gar Mat Sto Fac Was Fac Low Dat Pro Fac Ext Cet Arc Hub Fac Gar Fac Distress Signals 16 | . 1 . . . . . . 2 . . 1 . . . . 2 2 . 1 . . 7 Communications Jammed . | . . . . . . . . . . . . . . . . . . . . . . . Distress Signals . | . . . . . . . . . . . . . . . . . . . . . . . Times Spotted 341 | . 13 5 . 4 14 11 . 25 . 1 5 . 4 13 2 17 24 10 9 4 27 153 Peak Tracking Total 25 | . 5 3 . 4 3 5 . 6 . 1 2 . 4 3 1 4 5 1 4 4 6 25 Tactical Retreats 27 | . . . . 1 1 1 . 1 . . . . . 1 . 2 1 . . . 4 15 Traps | -11 -10 -10 -10 -9 -8 -8 -8 -8 -7 -7 -7 -7 -7 -6 -6 -6 -6 -6 -6 -5 -5 -4 ------- Run | Scr Mat Min Exi Min Mat Gar Mat Sto Fac Was Fac Low Dat Pro Fac Ext Cet Arc Hub Fac Gar Fac Traps Triggered 26 | . 1 . . . . 5 . 3 3 . 1 . . . . 5 . . 2 . 5 1 Indirectly 2 | . . . . . . . . . . . . . . . . . . . 2 . . . Trap Hack Attempts . | . . . . . . . . . . . . . . . . . . . . . . . Triggered . | . . . . . . . . . . . . . . . . . . . . . . . Disarmed . | . . . . . . . . . . . . . . . . . . . . . . . Reprogrammed . | . . . . . . . . . . . . . . . . . . . . . . . Reused . | . . . . . . . . . . . . . . . . . . . . . . . Traps Extracted . | . . . . . . . . . . . . . . . . . . . . . . . Installed . | . . . . . . . . . . . . . . . . . . . . . . . Triggered 1 | . . . . . . . . . . . . . . . . . . . . . . 1 Machines | -11 -10 -10 -10 -9 -8 -8 -8 -8 -7 -7 -7 -7 -7 -6 -6 -6 -6 -6 -6 -5 -5 -4 ---------- Run | Scr Mat Min Exi Min Mat Gar Mat Sto Fac Was Fac Low Dat Pro Fac Ext Cet Arc Hub Fac Gar Fac Machines Disabled 35 | . . 9 . . . 2 . 2 . . . . . . . . . 1 10 . 3 8 Max in Single Turn 9 | . . 7 . . . 1 . 1 . . . . . . . . . 1 9 . 1 3 Garrison Access 3 | . . . . . . . . 1 . . 1 . . . . . . . . . . 1 Garrison Relay 4 | . . . . . . 2 . . . . . . . . . . . . . . 2 . Network Hub 1 | . . . . . . . . . . . . . . . . . . . 1 . . . Machines Sabotaged . | . . . . . . . . . . . . . . . . . . . . . . . Garrisons Compromised . | . . . . . . . . . . . . . . . . . . . . . . . Overloaded Fab Kills . | . . . . . . . . . . . . . . . . . . . . . . . Fab Network Shutdowns 1 | . . . . . . . . . . . . . . . . . . . . . . 1 Hacking | -11 -10 -10 -10 -9 -8 -8 -8 -8 -7 -7 -7 -7 -7 -6 -6 -6 -6 -6 -6 -5 -5 -4 --------- Run | Scr Mat Min Exi Min Mat Gar Mat Sto Fac Was Fac Low Dat Pro Fac Ext Cet Arc Hub Fac Gar Fac Machines Accessed 33 | . 3 . 2 . 3 . . 8 . . 3 . 2 . 1 7 . . . 1 . 3 Terminals 21 | . 3 . . . 1 . . 6 . . 2 . . . 1 7 . . . . . 1 Fabricators 1 | . . . . . . . . . . . . . . . . . . . . . . 1 Repair Stations . | . . . . . . . . . . . . . . . . . . . . . . . Recycling Units 1 | . . . . . . . . 1 . . . . . . . . . . . . . . Scanalyzers 1 | . . . . . 1 . . . . . . . . . . . . . . . . . Garrison Access 5 | . . . . . 1 . . 1 . . 1 . . . . . . . . 1 . 1 Total Hacks 77 | . 9 . 2 . 9 . . 16 . . 6 . 13 . 2 14 . . . 1 . 5 Successful 49 | . 3 . 2 . 5 . . 9 . . 5 . 13 . 1 7 . . . 1 . 3 Failed 28 | . 6 . . . 4 . . 7 . . 1 . . . 1 7 . . . . . 2 Catastrophic 2 | . 1 . . . . . . . . . . . . . . 1 . . . . . . Database Lockouts . | . . . . . . . . . . . . . . . . . . . . . . . Manual 24 | . 4 . 1 . 2 . . 9 . . 4 . . . . 2 . . . . . 2 Terminals 48 | . 9 . . . 2 . . 13 . . 5 . . . 2 14 . . . . . 3 Fabricators 1 | . . . . . . . . . . . . . . . . . . . . . . 1 Repair Stations . | . . . . . . . . . . . . . . . . . . . . . . . Recycling Units 2 | . . . . . . . . 2 . . . . . . . . . . . . . . Scanalyzers 6 | . . . . . 6 . . . . . . . . . . . . . . . . . Garrison Access 5 | . . . . . 1 . . 1 . . 1 . . . . . . . . 1 . 1 Terminal Hacks 36 | . 3 . 2 . . . . 6 . . 4 . 13 . 1 6 . . . . . 1 Record 1 | . . . 1 . . . . . . . . . . . . . . . . . . . Part Schematic 5 | . . . . . . . . . . . . . 5 . . . . . . . . . Robot Schematic 5 | . . . . . . . . . . . . . 5 . . . . . . . . . Robot Analysis 4 | . 1 . . . . . . . . . 3 . . . . . . . . . . . Prototype ID Bank 4 | . . . . . . . . 1 . . . . 3 . . . . . . . . . Open Door 11 | . . . . . . . . 4 . . . . . . 1 6 . . . . . . Branch Access Points 2 | . 1 . . . . . . . . . 1 . . . . . . . . . . . Locate Traps 2 | . 1 . . . . . . 1 . . . . . . . . . . . . . . Recall Assault 1 | . . . . . . . . . . . . . . . . . . . . . . 1 EX-Prototype ID Bank 1 | . . . 1 . . . . . . . . . . . . . . . . . . . Fabricator Hacks 1 | . . . . . . . . . . . . . . . . . . . . . . 1 Build 1 | . . . . . . . . . . . . . . . . . . . . . . 1 Repair Station Hacks . | . . . . . . . . . . . . . . . . . . . . . . . Recycling Unit Hacks . | . . . . . . . . . . . . . . . . . . . . . . . Scanalyzer 4 | . . . . . 4 . . . . . . . . . . . . . . . . . Insert Component 2 | . . . . . 2 . . . . . . . . . . . . . . . . . Analyze 2 | . . . . . 2 . . . . . . . . . . . . . . . . . Garrison Access Hacks 5 | . . . . . 1 . . 1 . . 1 . . . . . . . . 1 . 1 Unlock Access 2 | . . . . . 1 . . . . . . . . . . . . . . 1 . . Seal Access 3 | . . . . . . . . 1 . . 1 . . . . . . . . . . 1 Unauthorized Hacks 3 | . . . . . . . . 2 . . . . . . . 1 . . . . . . Terminals 2 | . . . . . . . . 1 . . . . . . . 1 . . . . . . Track 1 | . . . . . . . . 1 . . . . . . . . . . . . . . Botnet 1 | . . . . . . . . . . . . . . . . 1 . . . . . . Fabricators . | . . . . . . . . . . . . . . . . . . . . . . . Repair Stations . | . . . . . . . . . . . . . . . . . . . . . . . Recycling Units 1 | . . . . . . . . 1 . . . . . . . . . . . . . . Mask 1 | . . . . . . . . 1 . . . . . . . . . . . . . . Scanalyzers . | . . . . . . . . . . . . . . . . . . . . . . . Garrison Access . | . . . . . . . . . . . . . . . . . . . . . . . Data Cores Recovered . | . . . . . . . . . . . . . . . . . . . . . . . Used . | . . . . . . . . . . . . . . . . . . . . . . . Hacking Detections 21 | . 3 . . . 2 . . 5 . . 2 . . . 1 5 . . . 1 . 2 Full Trace Events 1 | . . . . . . . . . . . 1 . . . . . . . . . . . Feedback Events . | . . . . . . . . . . . . . . . . . . . . . . . Feedback Blocked . | . . . . . . . . . . . . . . . . . . . . . . . Robot Schematics Acquired 5 | . . . . . . . . . . . . . 5 . . . . . . . . . Robots Built . | . . . . . . . . . . . . . . . . . . . . . . . Matter . | . . . . . . . . . . . . . . . . . . . . . . . Time . | . . . . . . . . . . . . . . . . . . . . . . . Total Robot Build Rating . | . . . . . . . . . . . . . . . . . . . . . . . Part Schematics Acquired 7 | . . . . . 2 . . . . . . . 5 . . . . . . . . . Parts Built 2 | . . . . . . . . . . . . . . . . . . . . . . 2 Matter 278 | . . . . . . . . . . . . . . . . . . . . . . 278 Time 46 | . . . . . . . . . . . . . . . . . . . . . . 46 Total Part Build Rating 18 | . . . . . . . . . . . . . . . . . . . . . . 18 Parts Repaired . | . . . . . . . . . . . . . . . . . . . . . . . Time . | . . . . . . . . . . . . . . . . . . . . . . . Parts Recycled . | . . . . . . . . . . . . . . . . . . . . . . . Recycled Matter . | . . . . . . . . . . . . . . . . . . . . . . . Retrieved Matter . | . . . . . . . . . . . . . . . . . . . . . . . Retrieved Components . | . . . . . . . . . . . . . . . . . . . . . . . Parts Scanalyzed 2 | . . . . . 2 . . . . . . . . . . . . . . . . . Part Schematics Acquired 2 | . . . . . 2 . . . . . . . . . . . . . . . . . Parts Damaged . | . . . . . . . . . . . . . . . . . . . . . . . Bothacking | -11 -10 -10 -10 -9 -8 -8 -8 -8 -7 -7 -7 -7 -7 -6 -6 -6 -6 -6 -6 -5 -5 -4 ------------ Run | Scr Mat Min Exi Min Mat Gar Mat Sto Fac Was Fac Low Dat Pro Fac Ext Cet Arc Hub Fac Gar Fac Used RIF Installer 2 | . . . . . . 1 . . . . . . . . . . . . . . 1 . Alert ID Control 1 | . . . . . . . . . . . . . . . . . . . . . 1 . Robots Hacked 3 | . . . . . . . . . 1 . . . . . . . . . . . 2 . Non-combat 1 | . . . . . . . . . 1 . . . . . . . . . . . . . Combat 2 | . . . . . . . . . . . . . . . . . . . . . 2 . Robot Hacks Applied 3 | . . . . . . . . . 1 . . . . . . . . . . . 2 . find_chute 1 | . . . . . . . . . 1 . . . . . . . . . . . . . formatsys_high 2 | . . . . . . . . . . . . . . . . . . . . . 2 . Relay Couplers Released 15 | . . . . . . 8 . . . . . . . . . . . . . . 7 . Machine Destruction 15 | . . . . . . 8 . . . . . . . . . . . . . . 7 . Attached 3 | . . . . . . . . . . . . . . . . . . . . . 2 1 Robots Rewired 17 | . . . . . . . . . . . . . . . . 15 . . . . . 2 Allies Hacked . | . . . . . . . . . . . . . . . . . . . . . . . Hacks Repelled . | . . . . . . . . . . . . . . . . . . . . . . . Allies | -11 -10 -10 -10 -9 -8 -8 -8 -8 -7 -7 -7 -7 -7 -6 -6 -6 -6 -6 -6 -5 -5 -4 -------- Run | Scr Mat Min Exi Min Mat Gar Mat Sto Fac Was Fac Low Dat Pro Fac Ext Cet Arc Hub Fac Gar Fac Total Allies 60 | . . . . . . . . 12 . 20 . . . . . 24 . . . . 2 2 Largest Group 20 | . . . . . . . . 12 . 20 20 4 4 . . 12 11 . . . 2 2 Highest-Rated Group 563 | . . . . . . . . 235 . 563 563 110 110 . . 374 306 . . . 130 109 Highest-Rated Ally 156 | . . . . . . . . 31 . 35 35 30 30 . . 156 37 . . . 81 60 Total Orders . | . . . . . . . . . . . . . . . . . . . . . . . Ally Attacks 260 | . . . . . . . . 32 . 1 50 . 3 . . 110 39 . . . 17 8 Total Damage 7432 | . . . . . . . . 475 . 10 1353 . 160 . . 2135 805 . . . 727 1767 Kills 67 | . . . . . . . . 4 . 1 16 . . . . 21 8 . . . 5 12 Allies Corrupted . | . . . . . . . . . . . . . . . . . . . . . . . Allies Melted . | . . . . . . . . . . . . . . . . . . . . . . . Intel | -11 -10 -10 -10 -9 -8 -8 -8 -8 -7 -7 -7 -7 -7 -6 -6 -6 -6 -6 -6 -5 -5 -4 ------- Run | Scr Mat Min Exi Min Mat Gar Mat Sto Fac Was Fac Low Dat Pro Fac Ext Cet Arc Hub Fac Gar Fac Robot Analysis Total 119 | . 1 . . . . . . . . . 3 . 115 . . . . . . . . . Derelict Logs Recovered 2 | . . 1 . . . . . . . . . . . 1 . . . . . . . . Drone Launches . | . . . . . . . . . . . . . . . . . . . . . . . Drone Recoveries . | . . . . . . . . . . . . . . . . . . . . . . . Exploration | -11 -10 -10 -10 -9 -8 -8 -8 -8 -7 -7 -7 -7 -7 -6 -6 -6 -6 -6 -6 -5 -5 -4 ------------- Run | Scr Mat Min Exi Min Mat Gar Mat Sto Fac Was Fac Low Dat Pro Fac Ext Cet Arc Hub Fac Gar Fac Turns Passed 14246 | 82 789 374 695 560 702 965 82 1293 230 912 926 283 227 950 186 1223 741 243 518 295 709 1261 Spaces Moved 6231 | 45 375 201 386 278 261 437 40 481 114 462 495 158 106 454 90 509 273 103 227 139 283 314 Core 2 | 2 . . . . . . . . . . . . . . . . . . . . . . Treads 6229 | 43 375 201 386 278 261 437 40 481 114 462 495 158 106 454 90 509 273 103 227 139 283 314 Legs . | . . . . . . . . . . . . . . . . . . . . . . . Wheels . | . . . . . . . . . . . . . . . . . . . . . . . Hover . | . . . . . . . . . . . . . . . . . . . . . . . Flight . | . . . . . . . . . . . . . . . . . . . . . . . Fastest Speed 50 | 50 160 180 180 180 180 200 200 200 187 180 180 180 180 160 180 180 182 183 180 180 180 180 Average Speed 184 | 155 176 180 180 180 190 201 200 201 187 181 180 180 180 179 180 185 196 183 182 180 180 182 Slowest Speed 240 | 160 180 180 180 180 220 220 200 206 187 187 180 180 180 180 180 200 240 183 183 200 180 220 Overloaded Moves . | . . . . . . . . . . . . . . . . . . . . . . . Propulsion Burnouts . | . . . . . . . . . . . . . . . . . . . . . . . Robots Hopped . | . . . . . . . . . . . . . . . . . . . . . . . Cave-ins Triggered . | . . . . . . . . . . . . . . . . . . . . . . . Exploration Rate (%) 43 | 5 62 39 71 51 30 74 8 70 4 93 22 26 77 70 3 74 58 79 25 6 52 10 Regions Visited 22 Branch Regions 11 Pre-discovered Areas 27 | . . . 1 . . . . . . . . . 26 . . . . . . . . . Known Exits Taken 5 | . 1 . . . 1 . 1 . . . 1 . . . . . . . . 1 . . Unknown Exits Taken 13 | 1 . 1 1 1 . . . 1 . . . 1 1 1 1 1 1 1 1 . . . Scrap Searched 3 | . . . . 1 . . . . . . . . . 2 . . . . . . . . Spaces Dug 56 | . . . . . . . . 5 . . . . . . . . 35 . 7 3 . 6 Terrain Destroyed 796 | . . 78 . . . 38 . 38 . . . . 22 157 . . 84 12 184 18 46 119 Melee 3 | . . . . . . . . . . . . . . . . . . . . 2 . 1 Projectile 105 | . . . . . . . . 7 . . . . . 3 . . 6 12 12 1 3 61 AOE 688 | . . 78 . . . 38 . 31 . . . . 22 154 . . 78 . 172 15 43 57 Terrain Rammed . | . . . . . . . . . . . . . . . . . . . . . . . Walls Destroyed . | . . . . . . . . . . . . . . . . . . . . . . . Machines Disabled . | . . . . . . . . . . . . . . . . . . . . . . . Actions | -11 -10 -10 -10 -9 -8 -8 -8 -8 -7 -7 -7 -7 -7 -6 -6 -6 -6 -6 -6 -5 -5 -4 --------- Run | Scr Mat Min Exi Min Mat Gar Mat Sto Fac Was Fac Low Dat Pro Fac Ext Cet Arc Hub Fac Gar Fac Total 7954 | 54 453 208 387 309 392 492 42 693 130 529 530 157 128 541 106 753 383 123 288 174 391 691 Wait 383 | . 3 . . 6 56 10 . 87 . 2 26 . . 34 9 16 16 . 18 5 20 75 Move 6212 | 44 374 200 385 277 261 436 39 480 114 461 494 157 105 453 89 508 272 102 226 139 282 314 Hop . | . . . . . . . . . . . . . . . . . . . . . . . Pick Up 158 | 4 22 1 1 3 13 4 1 14 3 23 2 . 2 1 1 13 11 2 9 2 8 18 Fast Attach 28 | 6 2 . . . 2 . . 4 . 2 . . . . 1 . 2 2 . 1 2 4 Attach 99 | . 1 . . 1 7 1 . 7 2 3 . . 2 3 1 6 12 . 2 7 5 39 Detach 21 | . . . . . 3 . . 1 . 1 . . . 1 . . . . 2 6 1 6 Swap 99 | . 5 . . 4 10 5 2 14 5 3 2 . 3 7 . 5 6 . 3 8 6 11 Drop 100 | . 12 1 1 3 4 . . 17 1 20 4 . 2 2 1 3 7 . 5 . 1 16 Fire 634 | . 34 6 . 14 36 26 . 68 . 14 2 . 14 40 4 23 57 17 22 4 58 195 Melee 5 | . . . . . . . . . 1 . . . . . . . . . . 2 . 2 Ram . | . . . . . . . . . . . . . . . . . . . . . . . Kick . | . . . . . . . . . . . . . . . . . . . . . . . Crush 3 | . . . . 1 . . . . . . . . . . . . . . 1 . . 1 Escape Stasis 32 | . . . . . . 10 . . 4 . . . . . . 10 . . . . 8 . Rewire 180 | . . . . . . . . 1 . . . . . . . 169 . . . . . 10 Trap . | . . . . . . . . . . . . . . . . . . . . . . . Miscellaneous . | . . . . . . . . . . . . . . . . . . . . . . . Route ------- -11/Scrapyard -10/Materials (discovered 3 exits: [*Mat x2] / *Min) -10/Mines -10/Exiles -9/Mines -8/Materials (discovered 2 exits: Sto / Gar) -8/Garrison (discovered 3 exits: [*Mat x3]) -8/Materials -8/Storage -7/Factory -7/Waste -7/Factory (discovered 2 exits: *Low x2) -7/Lower Caves -7/Data Miner -6/Proximity Caves -6/Factory -6/Extension (discovered 2 exits: *Fac / *Cet) -6/Cetus (discovered 2 exits: *Fac / [*Arc]) -6/Archives (discovered 3 exits: *Fac / [*Hub x2]) -6/Hub_04(d) -5/Factory -5/Garrison -4/Factory History --------- Turn | Location | Event 6 | -11/Scrapyard | Discovered new exit (range 16) 83 | -11/Scrapyard | Entered Materials 428 | -10/Materials | Discovered new exit (range 10) 505 | -10/Materials | Build established: Hauler-Mutant 528 | -10/Materials | Identified exit to Mines 695 | -10/Materials | Discovered new exit (range 15) 872 | -10/Materials | Entered Mines 961 | -10/Mines | Deemed a non-threat by the Exiles lab entrance 961 | -10/Mines | Discovered new exit (range 5) 1064 | -10/Mines | Found a damaged Exp. Sensor Array with a note attached 1069 | -10/Mines | Found Prototype Device 1246 | -10/Mines | Entered Exiles 1290 | -10/Exiles | Met 8R-AWN 1320 | -10/Exiles | Met EX-HEX 1403 | -10/Exiles | Met EX-DEC 1434 | -10/Exiles | Learned location of Zion (-6) 1614 | -10/Exiles | Met EX-BIN 1635 | -10/Exiles | Aligned with FarCom system 1637 | -10/Exiles | Given EX-Vault access code 1678 | -10/Exiles | Opened EX-Vault 1692 | -10/Exiles | Found Gui. Plasma Cannon 1734 | -10/Exiles | Warned to stay clear of 0b10 Research branches 1923 | -10/Exiles | Discovered new exit (range 11) 1941 | -10/Exiles | Left Exiles lab with Gui. Plasma Cannon 1941 | -10/Exiles | Entered Mines 2157 | -9/Mines | YI-UF0 nonchalantly dropped a Grenade Launcher on the ground 2245 | -9/Mines | Destroyed YI-UF0 2254 | -9/Mines | Found Prototype Storage 2260 | -9/Mines | Found Prototype Launcher 2329 | -9/Mines | Assembled infested the area 2334 | -9/Mines | Assisted by a Guerilla fighting off Assembled 2403 | -9/Mines | Discovered new exit (range 5) 2501 | -9/Mines | Entered Materials 2501 | -8/Materials | Evolved 4 slots: Propulsion x1, Utility x3 2502 | -8/Materials | Identified exit to Storage 2502 | -8/Materials | Identified YI-UF0's Bottomless Matter Pit 2504 | -8/Materials | Identified YI-UF0's Doublenader 3165 | -8/Materials | Garrison activated, responded to threat 3203 | -8/Materials | Identified exit to Garrison 3203 | -8/Materials | Entered Garrison 3272 | -8/Garrison | Triggered checkpoint 3305 | -8/Garrison | Triggered checkpoint 3337 | -8/Garrison | Triggered checkpoint 3368 | -8/Garrison | Destroyed 13 combat bots 3396 | -8/Garrison | Triggered checkpoint 3453 | -8/Garrison | Discovered new exit (range 9) 3595 | -8/Garrison | Discovered new exit (range 15) 3759 | -8/Garrison | Discovered new exit (range 10) 3787 | -8/Garrison | Installed Relay Interface Framework 3836 | -8/Garrison | Triggered checkpoint 3865 | -8/Garrison | Garrison Relay disabled 4026 | -8/Garrison | Triggered checkpoint 4063 | -8/Garrison | Garrison Relay disabled 4168 | -8/Garrison | Entered Materials 4168 | -8/Materials | Discovered exit to Storage (range 15) 4250 | -8/Materials | Entered Storage 4867 | -8/Storage | Assisted by bots powering up and referring to "LRC-V3" 4899 | -8/Storage | Met a pair of Derelict thieves 5293 | -8/Storage | Lost 3 parts (1p2n) 5470 | -8/Storage | Discovered new exit (range 16) 5543 | -8/Storage | Entered Factory 5543 | -7/Factory | Evolved 2 slots: Propulsion x1, Utility x1 5773 | -7/Factory | Sucked down chute 5773 | -7/Factory | Entered Waste 5774 | -7/Waste | Joined by Warlord forces that had cleared the area 5870 | -7/Waste | A Compactor rumbled back to life 5870 | -7/Waste | Crushed by Compactor (1 part destroyed, 2 dropped) 5870 | -7/Waste | Allies destroyed C-40 Crusher 5990 | -7/Waste | Found Damper Plating 6049 | -7/Waste | Found Imp. Powered Armor 6106 | -7/Waste | Discovered new exit (range 15) 6479 | -7/Waste | Found Damper Plating 6685 | -7/Waste | Entered Factory 6685 | -7/Factory | Accompanied by 20 allies 7035 | -7/Factory | Identified exit to Lower Caves 7611 | -7/Factory | Entered Lower Caves 7611 | -7/Lower Caves | Accompanied by 4 allies 7884 | -7/Lower Caves | A Derelict revealed a hidden shortcut to meet someone special 7894 | -7/Lower Caves | Entered Data Miner 7894 | -7/Data Miner | Accompanied by 4 allies 7894 | -7/Data Miner | Discovered new exit (range 6) 7929 | -7/Data Miner | Met Data Miner 7993 | -7/Data Miner | Received God Mode back door access code from Data Miner 8024 | -7/Data Miner | Interfaced with the Data Conduit 8024 | -7/Data Miner | Identified Exp. Sensor Array 8121 | -7/Data Miner | Entered Proximity Caves 8129 | -6/Proximity Caves | Learned Factory interactive machine intel 8465 | -6/Proximity Caves | Spotted B-75 Beast 8921 | -6/Proximity Caves | Destroyed B-75 Beast 8986 | -6/Proximity Caves | Attracted the attention of an 0b10 checkpoint 9031 | -6/Proximity Caves | Discovered new exit (range 15) 9071 | -6/Proximity Caves | Entered Factory 9071 | -6/Factory | Evolved 2 slots: Power x1, Utility x1 9072 | -6/Factory | Loaded intel: 242 machine locations 9073 | -6/Factory | Loaded intel: 48 interactive machine locations 9249 | -6/Factory | Discovered new exit (range 6) 9257 | -6/Factory | Entered Extension 9258 | -6/Extension | Loaded intel: 25 machine locations 9379 | -6/Extension | Lost 3 parts (2n1u) 9728 | -6/Extension | Rescued a captive Derelict 9760 | -6/Extension | Rescued A7 9808 | -6/Extension | Rescued a captive Derelict 9809 | -6/Extension | Rescued a captive Derelict 9846 | -6/Extension | Spotted B-75 Beast 9857 | -6/Extension | Spotted B-75 Beast 9887 | -6/Extension | Allies destroyed B-75 Beast 9891 | -6/Extension | Allies destroyed B-75 Beast 9897 | -6/Extension | Extracted ID and sensor layout for unrecognized location from A7's data core 10074 | -6/Extension | Rescued a captive Derelict 10075 | -6/Extension | Rescued a captive Derelict 10176 | -6/Extension | Rescued a captive Derelict 10209 | -6/Extension | Rescued a captive Derelict 10210 | -6/Extension | Rescued a captive Derelict 10439 | -6/Extension | Discovered new exit (range 10) 10441 | -6/Extension | Discovered new exit (range 6) 10480 | -6/Extension | Entered Cetus 10480 | -6/Cetus | Accompanied by 11 allies 10481 | -6/Cetus | Loaded intel: 24 machine locations 10504 | -6/Cetus | Spotted Cetus Guard 10504 | -6/Cetus | Spotted Cetus Guard 10506 | -6/Cetus | Spotted Cetus Guard 10513 | -6/Cetus | Spotted Cetus Guard 10514 | -6/Cetus | Allies destroyed Cetus Guard 10519 | -6/Cetus | Allies destroyed Cetus Guard 10520 | -6/Cetus | Allies destroyed Cetus Guard 10527 | -6/Cetus | Allies destroyed Cetus Guard 10695 | -6/Cetus | Discovered new exit (range 16) 10735 | -6/Cetus | Spotted Cetus Guard 10736 | -6/Cetus | Spotted Cetus Guard 10738 | -6/Cetus | Spotted Cetus Guard 10742 | -6/Cetus | Destroyed Cetus Guard 10746 | -6/Cetus | Spotted Cetus Guard 10770 | -6/Cetus | Destroyed Cetus Guard 10782 | -6/Cetus | Destroyed Cetus Guard 10808 | -6/Cetus | Destroyed Cetus Guard 10824 | -6/Cetus | Lost 5 parts (1p1n2u1w) 10828 | -6/Cetus | Discovered new exit (range 15) 10840 | -6/Cetus | Met Revision 17 11029 | -6/Cetus | Lost 3 parts (1n1u1w) 11131 | -6/Cetus | Lost 6 parts (2p3n1w) 11221 | -6/Cetus | Entered Archives 11222 | -6/Archives | Loaded intel: 8 machine locations 11312 | -6/Archives | Discovered new exit (range 16) 11332 | -6/Archives | Discovered new exit (range 16) 11353 | -6/Archives | Discovered new exit (range 16) 11464 | -6/Archives | Entered Hub_04(d) 11465 | -6/Hub_04(d) | Loaded intel: 95 machine locations 11587 | -6/Hub_04(d) | Build established: Scavenger-Mutant 11844 | -6/Hub_04(d) | Discovered new exit (range 3) 11845 | -6/Hub_04(d) | Network Hub disabled 11880 | -6/Hub_04(d) | Spotted Lightning 11883 | -6/Hub_04(d) | Spotted Lightning 11885 | -6/Hub_04(d) | Spotted Lightning 11892 | -6/Hub_04(d) | Destroyed Lightning 11912 | -6/Hub_04(d) | Destroyed Lightning 11915 | -6/Hub_04(d) | Destroyed Lightning 11931 | -6/Hub_04(d) | Found Exp. Phase Shifter 11945 | -6/Hub_04(d) | Found Prototype Energy Cannon 11951 | -6/Hub_04(d) | Found Prototype Energy Cannon 11954 | -6/Hub_04(d) | Found EM Dispersion Field 11982 | -6/Hub_04(d) | Entered Factory 11982 | -5/Factory | Evolved 2 slots: Utility x2 11983 | -5/Factory | Loaded intel: 263 machine locations 11988 | -5/Factory | Identified EMDS (x2) 12277 | -5/Factory | Identified exit to Garrison 12277 | -5/Factory | Entered Garrison 12278 | -5/Garrison | Loaded intel: 19 machine locations 12338 | -5/Garrison | Build established: Hauler-Mutant 12401 | -5/Garrison | Triggered checkpoint 12453 | -5/Garrison | Garrison Relay disabled 12573 | -5/Garrison | Spotted B-75 Beast 12579 | -5/Garrison | Assimilated Beast 6a with formatsys_high 12584 | -5/Garrison | Triggered checkpoint 12589 | -5/Garrison | Triggered checkpoint 12602 | -5/Garrison | Triggered checkpoint 12674 | -5/Garrison | Triggered checkpoint 12826 | -5/Garrison | Lost 3 parts (3u) 12880 | -5/Garrison | Triggered checkpoint 12898 | -5/Garrison | Garrison Relay disabled 12943 | -5/Garrison | Discovered new exit (range 14) 12977 | -5/Garrison | Expanded RIF knowledge: Alert ID Control 12986 | -5/Garrison | Entered Factory 12986 | -4/Factory | Evolved 2 slots: Power x1, Utility x1 12987 | -4/Factory | Loaded intel: 261 machine locations 13132 | -4/Factory | Fabricated Adv. Heavy Siege Treads (x2) 13273 | -4/Factory | Garrison activated, responded to threat 13388 | -4/Factory | Local fabrication network quarantined 13486 | -4/Factory | First assault squad dispatched 13701 | -4/Factory | Build established: Scavenger-Mutant 13753 | -4/Factory | High security lockdown imminent 13833 | -4/Factory | High security lockdown engaged 13885 | -4/Factory | Lost 6 parts (1p1n2u2w) 13992 | -4/Factory | Destroyed 14 combat bots 14007 | -4/Factory | Lost 5 parts (2p1n1u1w) 14106 | -4/Factory | Build established: Hauler-Mutant 14219 | -4/Factory | Core integrity fell below 50% 14243 | -4/Factory | Core integrity fell below 20% 14247 | -4/Factory | Destroyed by G-73 Enforcer with Phase Gun Last Messages --------------- 14238_ P-70 Sage unfolds itself. 14238_ H-77 Assassin unfolds itself. 14238_ I-47 Archangel unfolds itself. 14239_ P-70 Sage heat damages core (-16). 14240_ Extracted 10 matter. 14240_ Slug penetrates Wall. 14240_ Slug penetrates P-70 Sage. 14240_ G-67 Veteran destroyed. 14240_ System corrupted: Plasma Cutter targeting data glitched. 14241_ Hcp. Storage Unit destroyed. 14242_ Plasma Cutter destroyed. 14243_ P-70 Sage heat spikes uncontrollably. 14243_ Slug penetrates Wall. 14243_ Penetrated by Slug. 14244_ Extracted 10 matter. 14244_ P-70 Sage destroyed. 14244_ I-47 Archangel destroyed. 14245_ Phasing Sabre destroyed. 14246_ Slug penetrates Wall. 14247_ IS:GBDODT6,9RO&V%A9X#FCTNYR Map ----- +----------------------------------------------------+ | ??"?"???????"""???????????"""" ????? #?????????? | | ??"?"???????"""?"T"???????"""" ???? #?????????? | | ??"?"???????"""?"""?##???? % ! #? #?????????? | | ????????????? ??????# #??? # #?????????? | | ????????????##+#######"### #?????????? | | ????????% % #?????????? | | ??????? %" #?????????? | | ??????? = ="! #?????????? | | ???????? % %% #?????????? | | ???????? % #?????????? | | #+????????####p##### # ## "*#= # ###??????????? | | ?????????? "%" # " ##?????????????? | | ????????? " # % #???????????????? | | ????????? p #% # #??????????????? | | ????????? ! #????????????????? | | ????????? i /%" #??#?????????????? | | ????????? ## =!%% ## ??????????????? | | ????????? ???# =* = # #??????????????? | | ?????????? ?????#% !! %= ;#???????????????? | | ??????????? ???????#"=%==!##;##???????????????? | | ??????????? ?????????# %"w"*#[##????????????????? | | ??????????????????????# =" /%%#??????????????????? | | ??????????????????????####h[%!#??????????????????? | | ????????????????????????#|%%* #??????????????????? | | ??????????????????????####;#####?????????????????? | | ??????????????????????#/!@%=%[%#?????????????????? | | ??????????????????????#=[%==%= #?????????????????? | | ??????????????????????#*=%/l%% #?????????????????? | | ???????????????""""???#%g/=[ #?????????????????? | | ???????????????""""???#gpgp= #?????????????????? | | ???????????????""""???#!*!w #?????????????????? | | ####???????????""""??? #?????????????????? | | #?????????????????? g gg #?????????????????? | | #????????????????? m #?????????????????? | | #????###????##+### # #######???????????? | | #############b g ^ ????????? | | s???????? | | #### % s????????? | | #??# ######### ?????????? | | #??# = "" #??????????????????? | | ##+########## """ #??????????????????? | | # ! ## #??????????????????? | | # ""G"" ## +?????????""""??? | | # " " ## ""T"" #?????????""""??? | | # ## """"" #?????????""""??? | | # ############ #?????????""""??? | | + #??????????? #?????????""""??? | | ##############??????????? #?????????""""??? | | ????????????????????????? #???????????????? | | ????????????????????????? ??????????????? | +----------------------------------------------------+ Best States ------------- Heat Dissipation 62 Coolant Potential 65 Energy Generation 45 Energy Capacity 670 Matter Stores 300 Matter Capacity 300 Sight Range 16 Terrain Scan Density 10 Armor Coverage 2400 Resistance: EM 90 Core Shielding 30 Phase Shifting 20 Evasion (%) 55 Armor Integrity Analysis 33 Recoil Reduction 4 Offensive Hacking 14 Relay Coupler Types 29 Relay Coupler Value 1 Item Schematics ----------------- Hcp. Storage Unit | -8/Materials | Scanalyzed Hacking Suite | -8/Materials | Scanalyzed Combat Drone Bay | -7/Data Miner | Free Exp. Terrain Scanner | -7/Data Miner | Free Lgt. Regenerative Plating | -7/Data Miner | Free Exp. Targeting Computer | -7/Data Miner | Free Kinetic Spear | -7/Data Miner | Free Robot Schematics ------------------ S-27 Virus | -7/Data Miner | Free G-50 Soldier | -7/Data Miner | Free L-41 Fighter | -7/Data Miner | Free H-66 Slayer | -7/Data Miner | Free I-36 Angel | -7/Data Miner | Free Fabricated ------------ Adv. Heavy Siege Treads | x2 | -4/Factory | Preloaded Alien Tech Used ----------------- None Achievements -------------- None Challenges ------------ None Game ------ Seed ForceHardenedEdition Manual? 0 Play Time 02:10:56 Cumulative 149.0 hours Start 2021.01.03 @ 16:50:20 End 2021.01.04 @ 12:35:21 Sessions 5 Manual Loads 0 Difficulty Rogue Special Mode None Game No. 182 Rogue 95 Adventurer 87 Explorer 0 Win Type - Total 4 Types 3/0/0/1/0/0/0/0/0 Lore% 60 Gallery% 69 Achievement% 58 Wizard Run 0 Options --------- ASCII 0 Keyboard 1 Movement Numpad Keybinds 0 Fullscreen 1 Font 18/Smallcaps Map View 76x50 Tactical HUD 1 Map Filters NONE Filters NONE Steam 1 RUN: 8fce93db-7841-4e6d-97d7-006b70263785